{"text_format":"3","workbook":"xlsx","n_sheets":2,"sheets":["Sus gastos","Informe"],"not_rendered":{"charts":2,"images":1,"defined_names":6},"read":"whole","date_system":"1900"}

{"sheet":"Sus gastos","index":0,"n_rows":26,"n_cols":8,"rows_kept":26,"merged":[[1,1,1,7]]}
[]
[null,"Cree el presupuesto de alimentación. Consulte las sugerencias en las celdas del encabezado de la siguiente tabla.\nPuede crear informes en Hoja de cálculo de informe."]
[null,"Fecha","Categoría","Qué","Cómo \nmuchos","Precio \npor artículo","Precio \n(suma)","Dónde"]
[null,{"$f":"TODAY()","v":"2019-03-12"},"Dulces","Caramelos",{"v":0.25,"d":"0.3"},{"v":6,"d":"6.00 €"},{"$f":"Gastos_Mensuales[[#This Row],[Precio \npor artículo]]*Gastos_Mensuales[[#This Row],[Cómo \nmuchos]]","v":{"v":1.5,"d":"1.50 €"}},"Tienda de comestibles"]
[null,{"$f":"TODAY()","v":"2019-03-12"},"Bebidas","Coque",{"v":1,"d":"1.0"},{"v":1,"d":"1.00 €"},{"$f":"Gastos_Mensuales[[#This Row],[Precio \npor artículo]]*Gastos_Mensuales[[#This Row],[Cómo \nmuchos]]","v":{"v":1,"d":"1.00 €"}},"Establecimiento de comida rápida"]
[null,{"$f":"TODAY()-1","v":"2019-03-11"},"Comidas listas","Comida",{"v":1,"d":"1.0"},{"v":28,"d":"28.00 €"},{"$f":"Gastos_Mensuales[[#This Row],[Precio \npor artículo]]*Gastos_Mensuales[[#This Row],[Cómo \nmuchos]]","v":{"v":28,"d":"28.00 €"}},"Establecimiento de comida rápida"]
[null,{"$f":"TODAY()-1","v":"2019-03-11"},"Carne","Ternera",1.2,{"v":15,"d":"15.00 €"},{"$f":"Gastos_Mensuales[[#This Row],[Precio \npor artículo]]*Gastos_Mensuales[[#This Row],[Cómo \nmuchos]]","v":{"v":18,"d":"18.00 €"}},"Tienda de comestibles"]
[null,{"$f":"TODAY()-1","v":"2019-03-11"},"Alcohol","Whisky",{"v":1,"d":"1.0"},{"v":25,"d":"25.00 €"},{"$f":"Gastos_Mensuales[[#This Row],[Precio \npor artículo]]*Gastos_Mensuales[[#This Row],[Cómo \nmuchos]]","v":{"v":25,"d":"25.00 €"}},"Tienda de comestibles"]
[null,{"$f":"TODAY()-2","v":"2019-03-10"},"Bebidas","Refresco",{"v":6,"d":"6.0"},{"v":1,"d":"1.00 €"},{"$f":"Gastos_Mensuales[[#This Row],[Precio \npor artículo]]*Gastos_Mensuales[[#This Row],[Cómo \nmuchos]]","v":{"v":6,"d":"6.00 €"}},"Entrega a domicilio"]
[null,{"$f":"TODAY()-2","v":"2019-03-10"},"Comidas listas","Comida",{"v":1,"d":"1.0"},{"v":10,"d":"10.00 €"},{"$f":"Gastos_Mensuales[[#This Row],[Precio \npor artículo]]*Gastos_Mensuales[[#This Row],[Cómo \nmuchos]]","v":{"v":10,"d":"10.00 €"}},"Entrega a domicilio"]
[null,{"$f":"TODAY()-2","v":"2019-03-10"},"Frutas y verduras","Manzanas",{"v":2,"d":"2.0"},{"v":5,"d":"5.00 €"},{"$f":"Gastos_Mensuales[[#This Row],[Precio \npor artículo]]*Gastos_Mensuales[[#This Row],[Cómo \nmuchos]]","v":{"v":10,"d":"10.00 €"}},"Entrega a domicilio"]
[null,{"$f":"TODAY()-2","v":"2019-03-10"},"Bebidas","Agua",{"v":1,"d":"1.0"},{"v":1,"d":"1.00 €"},{"$f":"Gastos_Mensuales[[#This Row],[Precio \npor artículo]]*Gastos_Mensuales[[#This Row],[Cómo \nmuchos]]","v":{"v":1,"d":"1.00 €"}},"Tienda de comestibles"]
[null,{"$f":"TODAY()-3","v":"2019-03-09"},"Bebidas","Coque",{"v":1,"d":"1.0"},{"v":1,"d":"1.00 €"},{"$f":"Gastos_Mensuales[[#This Row],[Precio \npor artículo]]*Gastos_Mensuales[[#This Row],[Cómo \nmuchos]]","v":{"v":1,"d":"1.00 €"}},"Establecimiento de comida rápida"]
[null,{"$f":"TODAY()-3","v":"2019-03-09"},"Dulces","Chocolate",{"v":2,"d":"2.0"},{"v":3,"d":"3.00 €"},{"$f":"Gastos_Mensuales[[#This Row],[Precio \npor artículo]]*Gastos_Mensuales[[#This Row],[Cómo \nmuchos]]","v":{"v":6,"d":"6.00 €"}},"Tienda de comestibles"]
[null,{"$f":"TODAY()-3","v":"2019-03-09"},"Dulces","Caramelos",{"v":5,"d":"5.0"},{"v":1,"d":"1.00 €"},{"$f":"Gastos_Mensuales[[#This Row],[Precio \npor artículo]]*Gastos_Mensuales[[#This Row],[Cómo \nmuchos]]","v":{"v":5,"d":"5.00 €"}},"Tienda de comestibles"]
[null,{"$f":"TODAY()-3","v":"2019-03-09"},"Bebidas","Agua",{"v":2,"d":"2.0"},{"v":0.75,"d":"0.75 €"},{"$f":"Gastos_Mensuales[[#This Row],[Precio \npor artículo]]*Gastos_Mensuales[[#This Row],[Cómo \nmuchos]]","v":{"v":1.5,"d":"1.50 €"}},"Cafeterías"]
[null,{"$f":"TODAY()-4","v":"2019-03-08"},"Comidas listas","Arroz",{"v":1,"d":"1.0"},{"v":3.25,"d":"3.25 €"},{"$f":"Gastos_Mensuales[[#This Row],[Precio \npor artículo]]*Gastos_Mensuales[[#This Row],[Cómo \nmuchos]]","v":{"v":3.25,"d":"3.25 €"}},"Restaurante"]
[null,{"$f":"TODAY()-4","v":"2019-03-08"},"Carne","Ternera",0.6,{"v":12,"d":"12.00 €"},{"$f":"Gastos_Mensuales[[#This Row],[Precio \npor artículo]]*Gastos_Mensuales[[#This Row],[Cómo \nmuchos]]","v":{"v":7.199999999999999,"d":"7.20 €"}},"Tienda de comestibles"]
[null,{"$f":"TODAY()-4","v":"2019-03-08"},"Alcohol","Cerveza",{"v":1,"d":"1.0"},{"v":2,"d":"2.00 €"},{"$f":"Gastos_Mensuales[[#This Row],[Precio \npor artículo]]*Gastos_Mensuales[[#This Row],[Cómo \nmuchos]]","v":{"v":2,"d":"2.00 €"}},"Restaurante"]
[null,{"$f":"TODAY()-4","v":"2019-03-08"},"Bebidas","Refresco",{"v":1,"d":"1.0"},{"v":1,"d":"1.00 €"},{"$f":"Gastos_Mensuales[[#This Row],[Precio \npor artículo]]*Gastos_Mensuales[[#This Row],[Cómo \nmuchos]]","v":{"v":1,"d":"1.00 €"}},"Tienda de comestibles"]
[null,{"$f":"TODAY()-5","v":"2019-03-07"},"Comidas listas","Comida",{"v":1,"d":"1.0"},{"v":10,"d":"10.00 €"},{"$f":"Gastos_Mensuales[[#This Row],[Precio \npor artículo]]*Gastos_Mensuales[[#This Row],[Cómo \nmuchos]]","v":{"v":10,"d":"10.00 €"}},"Establecimiento de comida rápida"]
[null,{"$f":"TODAY()-5","v":"2019-03-07"},"Frutas y verduras","Plátanos",{"v":2,"d":"2.0"},{"v":3,"d":"3.00 €"},{"$f":"Gastos_Mensuales[[#This Row],[Precio \npor artículo]]*Gastos_Mensuales[[#This Row],[Cómo \nmuchos]]","v":{"v":6,"d":"6.00 €"}},"Entrega a domicilio"]
[null,{"$f":"TODAY()-5","v":"2019-03-07"},"Bebidas","Coque",{"v":1,"d":"1.0"},{"v":0.75,"d":"0.75 €"},{"$f":"Gastos_Mensuales[[#This Row],[Precio \npor artículo]]*Gastos_Mensuales[[#This Row],[Cómo \nmuchos]]","v":{"v":0.75,"d":"0.75 €"}},"Tienda de comestibles"]
[null,{"$f":"TODAY()-5","v":"2019-03-07"},"Alcohol","Cerveza",{"v":1,"d":"1.0"},{"v":1,"d":"1.00 €"},{"$f":"Gastos_Mensuales[[#This Row],[Precio \npor artículo]]*Gastos_Mensuales[[#This Row],[Cómo \nmuchos]]","v":{"v":1,"d":"1.00 €"}},"Cafeterías"]
[null,{"$f":"TODAY()-5","v":"2019-03-07"},"Pan","Panecillos",{"v":5,"d":"5.0"},{"v":0.2,"d":"0.20 €"},{"$f":"Gastos_Mensuales[[#This Row],[Precio \npor artículo]]*Gastos_Mensuales[[#This Row],[Cómo \nmuchos]]","v":{"v":1,"d":"1.00 €"}},"Tienda de comestibles"]
[null,"Total",{"$nulls":4},{"$f":"SUBTOTAL(109,Gastos_Mensuales[Precio \n(suma)])","v":{"v":146.2,"d":"146.20 €"}}]

{"sheet":"Informe","index":1,"n_rows":29,"n_cols":6,"rows_kept":29,"merged":[[0,1,0,7],[5,1,5,2],[18,1,18,2]]}
[null,"Compruebe los gastos en el período elegido. "]
[]
[null,"Día de inicio",{"$f":"TODAY()-1","v":"2019-03-11"},null,"Fecha de finalización",{"$f":"TODAY()","v":"2019-03-12"}]
[]
[]
[null,"Gastos por categoría de comida"]
[]
[null,"Categoría de comida","Gastos"]
[null,"Alcohol",{"$f":"SUMIFS(Gastos_Mensuales[Precio \n(suma)],Gastos_Mensuales[Fecha],\">=\"&Fecha_de_inicio,Gastos_Mensuales[Fecha],\"<=\"&Fecha_de_finalización,Gastos_Mensuales[Categoría],Gastos_por_Comida_para_Gatos[[#This Row],[Categoría de comida]])","v":{"v":25,"d":"25.00 €"}}]
[null,"Pan",{"$f":"SUMIFS(Gastos_Mensuales[Precio \n(suma)],Gastos_Mensuales[Fecha],\">=\"&Fecha_de_inicio,Gastos_Mensuales[Fecha],\"<=\"&Fecha_de_finalización,Gastos_Mensuales[Categoría],Gastos_por_Comida_para_Gatos[[#This Row],[Categoría de comida]])","v":{"v":0,"d":"0.00 €"}}]
[null,"Bebidas",{"$f":"SUMIFS(Gastos_Mensuales[Precio \n(suma)],Gastos_Mensuales[Fecha],\">=\"&Fecha_de_inicio,Gastos_Mensuales[Fecha],\"<=\"&Fecha_de_finalización,Gastos_Mensuales[Categoría],Gastos_por_Comida_para_Gatos[[#This Row],[Categoría de comida]])","v":{"v":1,"d":"1.00 €"}}]
[null,"Frutas y verduras",{"$f":"SUMIFS(Gastos_Mensuales[Precio \n(suma)],Gastos_Mensuales[Fecha],\">=\"&Fecha_de_inicio,Gastos_Mensuales[Fecha],\"<=\"&Fecha_de_finalización,Gastos_Mensuales[Categoría],Gastos_por_Comida_para_Gatos[[#This Row],[Categoría de comida]])","v":{"v":0,"d":"0.00 €"}}]
[null,"Carne",{"$f":"SUMIFS(Gastos_Mensuales[Precio \n(suma)],Gastos_Mensuales[Fecha],\">=\"&Fecha_de_inicio,Gastos_Mensuales[Fecha],\"<=\"&Fecha_de_finalización,Gastos_Mensuales[Categoría],Gastos_por_Comida_para_Gatos[[#This Row],[Categoría de comida]])","v":{"v":18,"d":"18.00 €"}}]
[null,"Comidas listas",{"$f":"SUMIFS(Gastos_Mensuales[Precio \n(suma)],Gastos_Mensuales[Fecha],\">=\"&Fecha_de_inicio,Gastos_Mensuales[Fecha],\"<=\"&Fecha_de_finalización,Gastos_Mensuales[Categoría],Gastos_por_Comida_para_Gatos[[#This Row],[Categoría de comida]])","v":{"v":28,"d":"28.00 €"}}]
[null,"Dulces",{"$f":"SUMIFS(Gastos_Mensuales[Precio \n(suma)],Gastos_Mensuales[Fecha],\">=\"&Fecha_de_inicio,Gastos_Mensuales[Fecha],\"<=\"&Fecha_de_finalización,Gastos_Mensuales[Categoría],Gastos_por_Comida_para_Gatos[[#This Row],[Categoría de comida]])","v":{"v":1.5,"d":"1.50 €"}}]
[null,"Otros",{"$f":"SUMIFS(Gastos_Mensuales[Precio \n(suma)],Gastos_Mensuales[Fecha],\">=\"&Fecha_de_inicio,Gastos_Mensuales[Fecha],\"<=\"&Fecha_de_finalización,Gastos_Mensuales[Categoría],Gastos_por_Comida_para_Gatos[[#This Row],[Categoría de comida]])","v":{"v":0,"d":"0.00 €"}}]
[null,"Total",{"$f":"SUBTOTAL(109,Gastos_por_Comida_para_Gatos[Gastos])","v":{"v":73.5,"d":"73.50 €"}}]
[]
[null,"Gastos por lugar"]
[]
[null,"Lista de lugares","Gastos"]
[null,"Mercado",{"$f":"SUMIFS(Gastos_Mensuales[Precio \n(suma)],Gastos_Mensuales[Fecha],\">=\"&Fecha_de_inicio,Gastos_Mensuales[Fecha],\"<=\"&Fecha_de_finalización,Gastos_Mensuales[Dónde],Gastos_por_Lugar[[#This Row],[Lista de lugares]])","v":{"v":0,"d":"0.00 €"}}]
[null,"Cafeterías",{"$f":"SUMIFS(Gastos_Mensuales[Precio \n(suma)],Gastos_Mensuales[Fecha],\">=\"&Fecha_de_inicio,Gastos_Mensuales[Fecha],\"<=\"&Fecha_de_finalización,Gastos_Mensuales[Dónde],Gastos_por_Lugar[[#This Row],[Lista de lugares]])","v":{"v":0,"d":"0.00 €"}}]
[null,"Establecimiento de comida rápida",{"$f":"SUMIFS(Gastos_Mensuales[Precio \n(suma)],Gastos_Mensuales[Fecha],\">=\"&Fecha_de_inicio,Gastos_Mensuales[Fecha],\"<=\"&Fecha_de_finalización,Gastos_Mensuales[Dónde],Gastos_por_Lugar[[#This Row],[Lista de lugares]])","v":{"v":29,"d":"29.00 €"}}]
[null,"Tienda de comestibles",{"$f":"SUMIFS(Gastos_Mensuales[Precio \n(suma)],Gastos_Mensuales[Fecha],\">=\"&Fecha_de_inicio,Gastos_Mensuales[Fecha],\"<=\"&Fecha_de_finalización,Gastos_Mensuales[Dónde],Gastos_por_Lugar[[#This Row],[Lista de lugares]])","v":{"v":44.5,"d":"44.50 €"}}]
[null,"Entrega a domicilio",{"$f":"SUMIFS(Gastos_Mensuales[Precio \n(suma)],Gastos_Mensuales[Fecha],\">=\"&Fecha_de_inicio,Gastos_Mensuales[Fecha],\"<=\"&Fecha_de_finalización,Gastos_Mensuales[Dónde],Gastos_por_Lugar[[#This Row],[Lista de lugares]])","v":{"v":0,"d":"0.00 €"}}]
[null,"Restaurante",{"$f":"SUMIFS(Gastos_Mensuales[Precio \n(suma)],Gastos_Mensuales[Fecha],\">=\"&Fecha_de_inicio,Gastos_Mensuales[Fecha],\"<=\"&Fecha_de_finalización,Gastos_Mensuales[Dónde],Gastos_por_Lugar[[#This Row],[Lista de lugares]])","v":{"v":0,"d":"0.00 €"}}]
[null,"Otros",{"$f":"SUMIFS(Gastos_Mensuales[Precio \n(suma)],Gastos_Mensuales[Fecha],\">=\"&Fecha_de_inicio,Gastos_Mensuales[Fecha],\"<=\"&Fecha_de_finalización,Gastos_Mensuales[Dónde],Gastos_por_Lugar[[#This Row],[Lista de lugares]])","v":{"v":0,"d":"0.00 €"}}]
[null,"Total",{"$f":"SUBTOTAL(109,Gastos_por_Lugar[Gastos])","v":{"v":73.5,"d":"73.50 €"}}]